bitfinex-derivatives/quotes_BTCF0:USTF0_20260113
["timestamp","ask_amount","ask_price","bid_price","bid_amount"]
[1768311662908,0.010863,92140.0,92134.0,0.0978]
[1768311663402,0.09735508,92150.0,92134.0,0.0998]
[1768311663708,0.09735508,92150.0,92135.0,0.09776]
[1768311663897,0.010864,92138.0,92136.0,0.09776]
[1768311664097,0.010864,92138.0,92137.0,0.09776]
[1768311664907,0.010864,92139.0,92137.0,0.09776]
[1768311665302,0.010864,92137.0,92125.0,0.00959769]
[1768311665508,0.010864,92137.0,92126.0,0.09776]
[1768311665703,0.010865,92129.0,92118.0,0.10240303]
[1768311665909,0.010864,92131.0,92119.0,0.09776]
[1768311666211,0.010864,92132.0,92119.0,0.09776]
[1768311666710,0.010864,92135.0,92119.0,0.09776]
[1768311666911,0.10879989,92142.0,92119.0,0.09776]
[1768311667208,0.010864,92133.0,92120.0,0.00959769]
[1768311668304,0.010864,92132.0,92120.0,0.00959769]
[1768311669411,0.00987603,92142.0,92120.0,0.00959769]
[1768311669717,0.010863,92146.0,92122.0,0.00959769]
[1768311670102,0.010864,92136.0,92122.0,0.00959769]
[1768311670510,0.010864,92136.0,92123.0,0.00959769]
[1768311671211,0.00987603,92157.0,92132.0,0.09280534]
[1768311671402,0.09892386,92161.0,92131.0,0.00959769]
[1768311671403,0.010862,92155.0,92137.0,0.00959769]
[1768311671602,0.010862,92149.0,92137.0,0.00959769]
[1768311672109,0.010863,92147.0,92137.0,0.00959769]
[1768311672309,0.010863,92146.0,92137.0,0.00959769]
[1768311672507,0.010862,92156.0,92136.0,0.09280534]
[1768311672714,0.010866,92114.0,92113.0,0.00542812]
[1768311672920,0.010868,92102.0,92093.0,0.10318929]
[1768311673103,0.010867,92113.0,92085.0,0.00238911]
[1768311673304,0.010868,92098.0,92086.0,0.09776]
[1768311673506,0.010869,92096.0,92086.0,0.09776]
[1768311673813,0.010866,92121.0,92087.0,0.01087]
[1768311674008,0.02074203,92121.0,92086.0,0.09776]
[1768311674207,0.00987603,92120.0,92086.0,0.09776]
[1768311674610,0.00987603,92120.0,92091.0,0.09974222]
[1768311674916,0.010867,92111.0,92092.0,0.0093408]
[1768311675706,0.00987603,92120.0,92091.0,0.09040142]
[1768311675707,0.010866,92116.0,92096.0,0.0093408]
[1768311675912,0.010866,92116.0,92097.0,0.09776]
[1768311676110,0.010866,92116.0,92097.0,0.1071008]
[1768311676307,0.010866,92115.0,92097.0,0.1071008]
[1768311676509,0.0099917,92126.0,92099.0,0.0093408]
[1768311676703,0.010866,92117.0,92097.0,0.09776]
[1768311676914,0.002,92111.0,92097.0,0.09776]
[1768311678823,0.010867,92113.0,92097.0,0.09776]
[1768311679211,0.0099917,92119.0,92097.0,0.09776]
[1768311679415,0.010867,92113.0,92097.0,0.09776]
[1768311679717,0.001,92111.0,92097.0,0.09776]
[1768311680519,0.00643906,92115.0,92097.0,0.09776]
[1768311680819,0.09257086,92143.0,92108.0,0.09040142]
[1768311681017,0.010864,92137.0,92119.0,0.0093408]
[1768311681212,0.010864,92139.0,92121.0,0.0093408]
[1768311681417,0.09257086,92150.0,92122.0,0.010865]
[1768311681716,0.09257086,92150.0,92121.0,0.0093408]
[1768311681915,0.010863,92143.0,92121.0,0.0202068]
[1768311682120,0.010863,92143.0,92123.0,0.010865]
[1768311682320,0.010863,92140.0,92121.0,0.010866]
[1768311682511,0.010864,92139.0,92120.0,0.0978]
[1768311682711,0.010864,92139.0,92120.0,0.1180068]
[1768311683016,0.010862,92152.0,92120.0,0.0978]
[1768311683017,0.010864,92137.0,92120.0,0.0978]
[1768311683514,0.010864,92134.0,92120.0,0.0978]
[1768311683718,0.010864,92135.0,92120.0,0.0978]
[1768311684015,0.010863,92144.0,92121.0,0.0978]
[1768311684016,0.010864,92134.0,92121.0,0.0978]
[1768311684326,0.00847722,92134.0,92122.0,0.0978]
[1768311684508,0.0099917,92140.0,92122.0,0.0978]
[1768311684509,0.010864,92137.0,92122.0,0.0978]
[1768311684918,0.054265,92232.0,92129.0,0.09040142]
[1768311685113,0.054265,92232.0,92122.0,0.0978]
[1768311685114,0.1283183,92199.0,92145.0,0.0093408]
[1768311685314,0.010859,92178.0,92156.0,0.0093408]
[1768311685513,0.010857,92192.0,92157.0,0.1180018]
[1768311685514,0.010859,92179.0,92157.0,0.1180018]
[1768311685716,0.010859,92179.0,92159.0,0.010861]
[1768311685920,0.0978,92186.0,92158.0,0.1071408]
[1768311686124,0.01086,92171.0,92158.0,0.1071408]
[1768311686327,0.01086,92169.0,92158.0,0.1071408]
[1768311686717,0.01086,92173.0,92158.0,0.1071408]
[1768311687024,0.010859,92176.0,92158.0,0.1071408]
[1768311687228,0.010859,92176.0,92158.0,0.1081408]
[1768311687730,0.010858,92183.0,92161.0,0.010861]
[1768311688027,0.10256256,92184.0,92158.0,0.1081408]
[1768311688323,0.01086,92169.0,92158.0,0.1081408]
[1768311688519,0.0099917,92177.0,92159.0,0.09776]
[1768311688714,0.001,92173.0,92153.0,0.010862]
[1768311688922,0.001,92173.0,92154.0,0.09776]
[1768311689119,0.001,92173.0,92155.0,0.09040142]
[1768311689529,0.010858,92187.0,92161.0,0.09040142]
[1768311689822,0.010857,92191.0,92163.0,0.09040142]
[1768311690216,0.010858,92184.0,92164.0,0.09040142]
[1768311690424,0.010858,92184.0,92165.0,0.0093408]
[1768311690621,0.010857,92196.0,92174.0,0.0201998]
[1768311690928,0.010857,92196.0,92175.0,0.09776]
[1768311691225,0.010858,92188.0,92177.0,0.0093408]
[1768311691411,0.20435269,92204.0,92184.0,0.0093408]
[1768311691615,0.09257086,92218.0,92184.0,0.0093408]
[1768311691616,0.010855,92210.0,92184.0,0.0093408]
[1768311691917,0.20435269,92210.0,92191.0,0.0093408]
[1768311692117,0.20435269,92210.0,92184.0,0.010858]
[1768311692118,0.010854,92219.0,92197.0,0.09974222]
[1768311692321,0.010854,92216.0,92198.0,0.0093408]
[1768311692624,0.20032256,92227.0,92205.0,0.002386]
[1768311692929,0.010855,92208.0,92203.0,0.1071008]
[1768311693233,0.003,92210.0,92202.0,0.09776]
[1768311693418,0.00542223,92213.0,92197.0,0.09040142]
[1768311693618,0.00542223,92213.0,92198.0,0.09776]
[1768311693819,0.00542223,92213.0,92092.0,0.19293824]
[1768311693820,0.10256256,92203.0,92092.0,0.19293824]
[1768311694127,0.0099917,92191.0,92153.0,0.10844928]
[1768311694316,0.010859,92180.0,92154.0,0.09776]
[1768311694627,0.10256256,92191.0,92154.0,0.09776]
[1768311694827,0.010859,92178.0,92154.0,0.09776]
[1768311695023,0.010858,92186.0,92155.0,0.00942642]
[1768311695436,0.010858,92183.0,92157.0,0.00942642]
[1768311695820,0.010858,92183.0,92158.0,0.08491651]
[1768311696133,0.004,92178.0,92160.0,0.00942642]
[1768311696530,0.004,92178.0,92173.0,5.8e-07]
[1768311696827,0.20435269,92178.0,92161.0,0.00942642]
[1768311697028,0.010859,92178.0,92162.0,0.09776]
[1768311697339,0.010859,92175.0,92162.0,0.09776]
[1768311697516,0.20435269,92181.0,92162.0,0.09776]
[1768311697931,0.01086,92169.0,92151.0,0.09776]
[1768311698330,0.20435269,92168.0,92160.0,0.004]
[1768311700736,0.20196747,92168.0,92160.0,0.004]
[1768311700928,0.20196747,92168.0,92156.0,0.010861]
[1768311701323,0.010859,92176.0,92156.0,0.010861]
[1768311701532,0.010859,92177.0,92155.0,0.010862]
[1768311701738,0.010859,92177.0,92160.0,0.006]
[1768311702124,0.010859,92180.0,92160.0,0.016861]
[1768311702539,0.010859,92180.0,92160.0,0.010861]
[1768311702736,0.108578,92187.0,92161.0,0.00942642]
[1768311703038,0.09772,92187.0,92167.0,0.00942642]
[1768311703340,0.09772,92194.0,92174.0,0.02028542]
[1768311703539,0.09772,92194.0,92174.0,0.00942642]
[1768311703735,0.09772,92194.0,92174.0,0.02028542]
[1768311703932,0.108577,92194.0,92174.0,0.02028542]
[1768311704243,0.108577,92194.0,92174.0,0.00942642]
[1768311704427,0.108577,92194.0,92171.0,0.01086]
[1768311704428,0.010857,92192.0,92171.0,0.01086]
[1768311704631,0.00914804,92192.0,92166.0,0.00942642]
[1768311704934,0.00914804,92191.0,92166.0,0.00942642]
[1768311705133,0.010858,92190.0,92170.0,0.01086]
[1768311705439,0.00914804,92191.0,92174.0,0.010859]
[1768311706341,0.00914804,92191.0,92167.0,0.09772]
[1768311706839,0.00914804,92189.0,92167.0,0.09772]
[1768311707342,0.00914804,92189.0,92176.0,0.010859]
[1768311707543,0.09772,92194.0,92176.0,0.010859]
[1768311707740,0.00914804,92193.0,92176.0,0.010859]
[1768311707945,0.010851,92242.0,92168.0,0.09772]
[1768311707946,0.00914804,92224.0,92198.0,0.010857]
[1768311708142,0.09491543,92220.0,92199.0,0.09772]
[1768311708443,0.09491543,92220.0,92189.0,0.010858]
[1768311708644,0.09491543,92220.0,92190.0,0.09772]
[1768311708846,0.09491543,92230.0,92193.0,0.06114234]
[1768311709033,0.09491543,92230.0,92198.0,0.00942642]
[1768311709230,0.05138752,92231.0,92204.0,0.010856]
[1768311709435,0.05138752,92231.0,92205.0,0.09772]
[1768311710142,5.2e-07,92231.0,92206.0,0.010856]
[1768311710339,5.2e-07,92231.0,92208.0,0.00942642]
[1768311710535,5.2e-07,92231.0,92224.0,0.010853]
[1768311710731,0.0479974,92244.0,92223.0,0.010854]
[1768311710934,0.0479974,92244.0,92224.0,0.09772]
[1768311711349,0.0479974,92244.0,92225.0,0.010853]
[1768311711645,0.09491543,92243.0,92225.0,0.010853]
[1768311712143,0.0479974,92244.0,92224.0,0.09772]
[1768311712442,0.09491543,92250.0,92234.0,0.010852]
[1768311712744,0.01456792,92253.0,92235.0,0.00543095]
[1768311712944,0.01456792,92253.0,92235.0,0.10315095]
[1768311713132,0.09491543,92251.0,92235.0,0.09772]
[1768311713336,0.00914804,92245.0,92232.0,0.09772]
[1768311713531,0.00914804,92245.0,92233.0,0.09772]
[1768311713731,0.00914804,92245.0,92232.0,0.108573]
[1768311713936,0.00914804,92245.0,92229.0,0.010853]
[1768311714143,0.00541988,92253.0,92230.0,0.09772]
[1768311714340,0.00914804,92249.0,92230.0,0.09772]
[1768311714546,0.00914804,92247.0,92232.0,0.003]
[1768311714749,0.00914804,92241.0,92228.0,0.09772]
[1768311715247,0.00914804,92241.0,92230.0,0.001]
[1768311715634,0.00914804,92249.0,92230.0,0.001]
[1768311715834,0.00914804,92249.0,92234.0,0.010852]
[1768311716146,0.00914804,92252.0,92230.0,0.011853]
[1768311716446,0.00914804,92252.0,92231.0,0.09772]
[1768311716748,0.00676359,92251.0,92231.0,0.09772]
[1768311716944,0.01085,92250.0,92231.0,0.09772]
[1768311717246,0.09491543,92252.0,92231.0,0.09772]
[1768311718534,0.09491543,92252.0,92232.0,0.010853]
[1768311718846,0.09491543,92252.0,92232.0,0.010852]
[1768311719037,0.09491543,92252.0,92231.0,0.09772]
[1768311719544,0.00541988,92253.0,92231.0,0.09772]
[1768311719951,0.00541988,92253.0,92235.0,0.010852]
[1768311720246,0.00541988,92253.0,92232.0,0.001]
[1768311720542,0.01085,92252.0,92232.0,0.001]
[1768311721139,0.01085,92252.0,92235.0,0.002]
[1768311721538,0.00541988,92253.0,92235.0,0.002]
[1768311721743,0.00541988,92253.0,92235.0,0.01142642]
[1768311721946,0.00541988,92253.0,92233.0,0.09768]
[1768311721947,0.00541988,92253.0,92240.0,0.00942642]
[1768311722444,0.00541988,92253.0,92241.0,0.010851]
[1768311722648,0.09768,92268.0,92243.0,0.09020102]
[1768311722948,0.09768,92268.0,92245.0,0.00942642]
[1768311723151,0.010848,92268.0,92246.0,0.11795742]
[1768311723349,0.00914804,92271.0,92246.0,0.10710642]
[1768311723544,0.010849,92263.0,92246.0,0.10710642]
[1768311723750,0.010849,92264.0,92246.0,0.10710642]
[1768311724047,0.010849,92263.0,92246.0,0.10710642]
[1768311724249,0.010849,92263.0,92246.0,0.13515881]
[1768311724752,0.010849,92263.0,92246.0,0.13715881]
[1768311725047,0.010849,92265.0,92246.0,0.13715881]
[1768311725256,0.00914804,92271.0,92249.0,0.01085]
[1768311725738,0.010848,92270.0,92251.0,0.01085]
[1768311725935,0.00940695,92270.0,92246.0,0.12673239]
[1768311726140,0.010856,92201.0,92165.0,0.02856531]
[1768311726340,0.00940695,92190.0,92165.0,0.02856531]
[1768311726547,0.00940695,92188.0,92165.0,0.02856531]
[1768311726848,0.010859,92181.0,92165.0,0.03783054]
[1768311727054,0.7588,92181.0,92165.0,0.03783054]
[1768311727344,0.09768,92180.0,92172.0,0.13520259]
[1768311727534,0.09779384,92180.0,92165.0,0.03783054]
[1768311727936,0.00011384,92180.0,92159.0,0.09305871]
[1768311728140,0.010859,92174.0,92159.0,0.09305871]
[1768311728547,0.09768,92179.0,92159.0,0.09305871]
[1768311728948,0.09768,92179.0,92153.0,0.00542576]
[1768311729247,0.01086,92171.0,92153.0,0.00542576]
[1768311729455,0.09768,92179.0,92153.0,0.00542576]
[1768311730048,0.00011384,92180.0,92155.0,0.09305871]
[1768311730252,0.09768,92179.0,92161.0,0.09305871]
[1768311730449,0.09768,92178.0,92161.0,0.09305871]
[1768311730753,0.84952695,92190.0,92161.0,0.09305871]
[1768311730754,0.00940695,92190.0,92161.0,0.09305871]
[1768311731051,0.003,92179.0,92161.0,0.09305871]
[1768311731247,0.09768,92178.0,92161.0,0.09305871]
[1768311731456,0.003,92179.0,92161.0,0.09305871]
[1768311731644,0.09968,92178.0,92161.0,0.09305871]
[1768311732444,0.09868,92178.0,92161.0,0.09305871]
[1768311733147,0.001,92178.0,92161.0,0.09305871]
[1768311733342,0.001,92178.0,92163.0,0.09129655]
[1768311733544,0.00738345,92177.0,92167.0,0.09029655]
[1768311733749,0.010858,92185.0,92167.0,0.09029655]
[1768311733948,0.09768,92184.0,92167.0,0.09029655]
[1768311734250,0.09772,92183.0,92167.0,0.09029655]
[1768311734454,0.00940695,92195.0,92167.0,0.00718207]
[1768311734655,0.00940695,92195.0,92155.0,0.02843067]
[1768311734656,0.010857,92195.0,92156.0,0.010861]
[1768311734844,0.001,92185.0,92156.0,0.010861]
[1768311735043,0.001,92185.0,92174.0,0.02778418]
[1768311735441,0.001,92185.0,92156.0,0.010861]
[1768311735656,0.09772,92194.0,92155.0,0.02843067]
[1768311735850,0.002,92195.0,92160.0,0.010861]
[1768311736050,0.09772,92208.0,92175.0,0.010859]
[1768311736250,0.09772,92207.0,92193.0,0.010857]
[1768311737152,0.09772,92207.0,92189.0,0.010858]
[1768311738457,0.010855,92208.0,92189.0,0.010858]
[1768311738763,0.108575,92208.0,92189.0,0.010858]
[1768311739060,0.108575,92208.0,92189.0,0.011858]
[1768311739260,0.31353172,92208.0,92189.0,0.011858]
[1768311739949,0.11809172,92208.0,92189.0,0.011858]
[1768311740150,0.31353172,92208.0,92189.0,0.011858]
[1768311740351,0.010856,92204.0,92189.0,0.001]
[1768311740657,0.31353172,92208.0,92189.0,0.001]
[1768311740959,0.19544,92207.0,92189.0,0.001]
[1768311741158,0.010856,92206.0,92189.0,0.001]
[1768311741360,0.010856,92206.0,92186.0,0.010858]
[1768311741551,0.010856,92206.0,92189.0,0.002]
[1768311741759,0.206296,92206.0,92189.0,0.002]
[1768311742159,0.19544,92206.0,92189.0,0.010858]
[1768311742357,0.09772,92208.0,92189.0,0.012858]
[1768311742660,0.09862074,92231.0,92189.0,0.012858]
[1768311742661,0.09772,92222.0,92206.0,0.010856]
[1768311742856,0.09772,92221.0,92206.0,0.010856]
[1768311743952,0.09772,92221.0,92198.0,0.02830617]
[1768311744156,0.09772,92221.0,92206.0,0.010856]
[1768311744352,0.09772,92221.0,92208.0,0.010855]
[1768311745159,0.10723672,92221.0,92203.0,0.010856]
[1768311745357,0.11909072,92221.0,92202.0,0.010856]
[1768311745553,0.00951672,92220.0,92202.0,0.010856]
[1768311746153,0.00951672,92220.0,92208.0,0.001]
[1768311747651,0.00951672,92220.0,92206.0,0.010856]
[1768311747962,0.00951672,92220.0,92209.0,0.010855]
[1768311748454,0.00951672,92220.0,92213.0,0.010855]
[1768311748656,0.00951672,92220.0,92215.0,0.010854]
[1768311749162,0.09768,92219.0,92215.0,0.010854]
[1768311749368,0.09768,92219.0,92209.0,0.004]
[1768311749554,0.09768,92219.0,92209.0,0.014855]
[1768311749861,0.00951672,92226.0,92211.0,0.010855]
[1768311750162,0.09768,92220.0,92211.0,0.010855]
[1768311750459,0.09768,92225.0,92215.0,0.010855]
[1768311750860,0.00951672,92236.0,92220.0,0.010854]
[1768311751054,0.00951672,92236.0,92217.0,0.02768484]
[1768311751257,0.09768,92235.0,92217.0,0.02768484]
[1768311751561,0.010851,92247.0,92228.0,0.010853]
[1768311751759,0.00951672,92249.0,92234.0,0.010852]
[1768311752063,0.00951672,92249.0,92232.0,0.010853]
[1768311752264,0.00951672,92249.0,92231.0,0.010853]
[1768311752475,0.00951672,92249.0,92238.0,0.010852]
[1768311753160,0.00951672,92249.0,92224.0,0.010853]
[1768311753363,0.00951672,92249.0,92235.0,0.010852]
[1768311753563,0.00951672,92249.0,92237.0,0.010852]
[1768311753765,0.00951672,92249.0,92234.0,0.010852]
[1768311753952,0.00951672,92249.0,92224.0,0.010853]
[1768311753953,0.00951672,92249.0,92236.0,0.010852]
[1768311754355,0.00951672,92249.0,92224.0,0.010853]
[1768311754550,0.00951672,92249.0,92235.0,0.010852]
[1768311754752,0.00951672,92249.0,92237.0,0.010852]
[1768311754957,0.01051672,92249.0,92237.0,0.010852]
[1768311755358,0.01051672,92249.0,92229.0,0.09768]
[1768311756070,0.00957595,92256.0,92239.0,0.010852]
[1768311756260,0.00957595,92256.0,92242.0,0.010851]
[1768311756461,0.00957595,92256.0,92239.0,0.03889537]
[1768311756957,0.00957595,92256.0,92239.0,0.02804337]
[1768311757162,0.00957595,92256.0,92243.0,0.010851]
[1768311757954,0.00957595,92256.0,92245.0,0.010851]
[1768311758258,0.00957595,92256.0,92239.0,0.02804337]
[1768311758459,0.01157595,92256.0,92239.0,0.02804337]
[1768311759162,0.00957595,92256.0,92245.0,0.010851]
[1768311759373,0.01057595,92256.0,92245.0,0.010851]
[1768311759854,0.01085,92255.0,92239.0,0.02804337]
[1768311760060,0.00957595,92255.0,92240.0,0.010852]
[1768311760971,0.00957595,92255.0,92239.0,0.02804337]
[1768311761770,0.01157595,92255.0,92239.0,0.02804337]
[1768311762470,0.00957595,92253.0,92239.0,3.7e-07]
[1768311762668,0.00957595,92230.0,92217.0,0.02768484]
[1768311762983,0.00957595,92228.0,92199.0,0.09768]
[1768311763268,0.00957595,92228.0,92213.0,0.010855]
[1768311763568,0.00957595,92228.0,92215.0,0.010855]
[1768311763760,0.00957595,92228.0,92200.0,0.0074812]
[1768311763962,0.00957595,92228.0,92201.0,0.010856]
[1768311764270,0.00957595,92228.0,92215.0,0.010855]
[1768311764867,0.00957595,92227.0,92200.0,0.0074812]
[1768311765071,0.00957595,92209.0,92185.0,0.09768]
[1768311765370,0.10725595,92209.0,92185.0,0.09768]
[1768311765774,0.10725595,92209.0,92198.0,0.03916317]
[1768311766975,0.10725595,92209.0,92198.0,0.02830617]
[1768311767359,0.09892938,92214.0,92201.0,0.010856]
[1768311767563,0.09768,92213.0,92203.0,0.010856]
[1768311767861,0.09768,92212.0,92203.0,0.010856]
[1768311768063,0.09768,92214.0,92202.0,0.010856]
[1768311768263,0.09768,92214.0,92204.0,0.010856]
[1768311768572,0.09892938,92211.0,92198.0,0.03030617]
[1768311768765,0.09892938,92211.0,92191.0,0.01094679]
[1768311769074,0.09892938,92207.0,92191.0,8.979e-05]
[1768311770277,0.00957595,92206.0,92191.0,8.979e-05]
[1768311771359,0.00957595,92206.0,92191.0,0.01094679]
[1768311771561,0.01157595,92206.0,92191.0,0.01094679]
[1768311771770,0.01157595,92206.0,92191.0,8.979e-05]
[1768311772471,0.02043195,92203.0,92184.0,0.010858]
[1768311772775,0.02043195,92203.0,92173.0,0.00695149]
[1768311772776,0.00957595,92199.0,92181.0,0.010859]
[1768311772976,0.00957595,92199.0,92173.0,0.11454809]
[1768311772977,0.00957595,92197.0,92178.0,0.010859]
[1768311773473,0.00957595,92197.0,92180.0,0.010859]
[1768311773678,0.00011648,92196.0,92180.0,0.010859]
[1768311774872,0.00111648,92196.0,92180.0,0.010859]
[1768311776362,0.00111648,92196.0,92173.0,0.1075966]
[1768311776567,0.00957595,92193.0,92173.0,0.09768]
[1768311777370,0.00011648,92196.0,92187.0,0.010858]
[1768311777564,0.108536,92203.0,92187.0,0.02697609]
[1768311777874,0.00957595,92202.0,92187.0,0.02697609]
[1768311778075,0.010856,92201.0,92187.0,0.02697609]
[1768311778262,0.00957595,92202.0,92187.0,0.02697609]
[1768311778263,0.003,92193.0,92187.0,0.02697609]
[1768311780280,0.01057595,92202.0,92187.0,0.02697609]
[1768311780576,0.09892938,92199.0,92187.0,0.02697609]
[1768311780876,0.010857,92191.0,92174.0,0.010859]
[1768311781076,0.00957595,92194.0,92173.0,0.093539]
[1768311781474,0.09892938,92219.0,92177.0,0.00940721]
[1768311781678,0.010855,92211.0,92193.0,0.010857]
[1768311781979,0.00957595,92216.0,92190.0,0.0099166]
[1768311782171,0.00957595,92215.0,92190.0,0.0099166]
[1768311782373,0.00957595,92215.0,92193.0,0.010857]
[1768311782984,0.010855,92214.0,92190.0,0.0099166]
[1768311783280,0.00957595,92215.0,92199.0,0.010856]
[1768311783471,0.09768,92214.0,92196.0,0.010857]
[1768311784079,0.09968,92214.0,92196.0,0.010857]
[1768311784372,0.09968,92214.0,92198.0,0.010857]
[1768311784577,0.09968,92214.0,92192.0,0.0099166]
[1768311784784,0.09768,92214.0,92192.0,0.0099166]
[1768311784982,0.09868,92214.0,92192.0,0.0099166]
[1768311785481,0.09868,92214.0,92194.0,0.00942656]
[1768311785684,0.09768,92219.0,92207.0,0.010855]
[1768311785880,0.09768,92219.0,92198.0,0.00942656]
[1768311786080,0.09768,92219.0,92203.0,0.010856]
[1768311786281,0.09768,92219.0,92206.0,0.010856]
[1768311787182,0.09768,92219.0,92203.0,0.001]
[1768311787580,0.09768,92219.0,92206.0,0.010856]
[1768311787785,0.09768,92219.0,92203.0,0.001]
[1768311787988,0.09768,92219.0,92206.0,0.001]
[1768311788991,0.09768,92219.0,92208.0,0.010855]
[1768311789284,0.00931307,92222.0,92207.0,0.010855]
[1768311789489,0.00931307,92222.0,92209.0,0.010855]
[1768311790286,0.00931307,92222.0,92206.0,0.002]
[1768311790487,0.10894579,92229.0,92206.0,0.002]
[1768311790685,0.00931307,92229.0,92215.0,0.010855]
[1768311791091,0.00931307,92229.0,92221.0,0.010854]
[1768311791288,0.00931307,92236.0,92225.0,0.010853]
[1768311791482,0.09768,92238.0,92216.0,0.01028446]
[1768311791687,0.00931307,92244.0,92229.0,0.010853]
[1768311791887,0.00931307,92244.0,92221.0,0.010854]
[1768311792081,0.00931307,92244.0,92229.0,0.010853]
[1768311792282,0.010851,92243.0,92226.0,0.010853]
[1768311792593,0.00931307,92244.0,92228.0,0.010853]
[1768311793990,0.00931307,92244.0,92228.0,0.011853]
[1768311795881,0.00931307,92244.0,92228.0,0.001]
[1768311796097,0.00943197,92251.0,92234.0,0.010852]
[1768311796896,0.10806174,92251.0,92231.0,0.010853]
[1768311797094,0.00943197,92249.0,92231.0,0.010853]
[1768311797298,0.00943197,92249.0,92234.0,0.001]
[1768311798098,0.00943197,92249.0,92235.0,0.010852]
[1768311798695,0.00943197,92249.0,92232.0,0.010853]
[1768311798890,0.00943197,92249.0,92234.0,0.010852]
[1768311799696,0.00943197,92249.0,92234.0,0.011852]
[1768311800188,0.00943197,92249.0,92234.0,0.001]
[1768311800404,0.00943197,92249.0,92234.0,0.011852]
[1768311800698,0.00943197,92249.0,92234.0,0.010852]
[1768311801596,0.00943197,92249.0,92236.0,0.010852]
[1768311801797,0.00943197,92249.0,92226.0,0.00976478]
[1768311802100,0.00943197,92248.0,92228.0,0.010853]
[1768311802290,0.00943197,92248.0,92240.0,0.010852]
[1768311803402,0.00943197,92248.0,92240.0,0.011852]
[1768311804197,0.00943197,92248.0,92240.0,0.008852]
[1768311804597,0.00943197,92248.0,92240.0,0.001]
[1768311804799,0.09768,92252.0,92244.0,0.010851]
[1768311804996,0.09768,92261.0,92246.0,0.010851]
[1768311806291,0.010849,92260.0,92242.0,0.010851]
[1768311806492,0.09768,92261.0,92246.0,0.010851]
[1768311806693,0.09768,92261.0,92246.0,0.011851]
[1768311807003,0.09862977,92260.0,92246.0,0.011851]
[1768311807301,0.10806174,92260.0,92246.0,0.011851]
[1768311807501,0.10806174,92260.0,92246.0,0.010851]
[1768311809105,0.09862977,92259.0,92243.0,0.010851]
[1768311809307,0.09862977,92259.0,92244.0,0.010851]
[1768311809494,0.10806174,92259.0,92244.0,0.010851]
[1768311809696,0.09862977,92257.0,92242.0,0.010851]
[1768311810302,0.09862977,92257.0,92237.0,0.00976478]
[1768311811505,0.09862977,92257.0,92238.0,0.010852]
[1768311811704,0.09862977,92257.0,92246.0,0.010851]
[1768311811895,0.09862977,92257.0,92238.0,0.010852]
[1768311811896,0.09862977,92257.0,92239.0,0.010852]
[1768311812206,0.09768,92261.0,92251.0,0.01085]
[1768311812401,0.09768,92261.0,92243.0,0.00976478]
[1768311812707,0.00943197,92272.0,92260.0,0.010849]
[1768311813093,0.10806174,92272.0,92253.0,0.01085]
[1768311813307,0.09862977,92270.0,92255.0,0.01085]
[1768311813806,0.09862977,92270.0,92252.0,0.01085]
[1768311814006,0.010848,92269.0,92252.0,0.01085]
[1768311814206,0.09862977,92270.0,92260.0,0.001]
[1768311815605,0.09862977,92270.0,92248.0,0.00976478]
[1768311815606,0.09862977,92270.0,92251.0,0.01085]
[1768311815997,0.09862977,92270.0,92255.0,0.01085]
[1768311816198,0.0054187,92273.0,92251.0,0.00973524]
[1768311816403,0.0054187,92273.0,92260.0,0.001]
[1768311816605,0.0054187,92273.0,92260.0,0.011849]
[1768311817205,0.0054187,92273.0,92260.0,0.001]
[1768311818400,0.11493385,92273.0,92260.0,0.001]
[1768311818606,0.09991889,92272.0,92254.0,0.01085]
[1768311819107,0.09991889,92264.0,92240.0,0.09150266]
[1768311819303,0.0054187,92273.0,92239.0,0.00973524]
[1768311819304,0.09991889,92262.0,92239.0,0.00973524]
[1768311819507,0.09991889,92262.0,92250.0,0.01085]
[1768311820110,0.09991889,92262.0,92245.0,0.09764]
[1768311820310,0.001,92262.0,92245.0,0.09764]
[1768311820912,0.001,92262.0,92251.0,0.01085]
[1768311821102,0.001,92262.0,92253.0,0.01085]
[1768311821814,0.09991889,92267.0,92246.0,0.010851]
[1768311822006,0.09991889,92267.0,92257.0,0.01085]
[1768311822314,0.09991889,92267.0,92256.0,0.01085]
[1768311823316,0.00959626,92269.0,92256.0,0.01085]
[1768311823614,0.00959626,92269.0,92256.0,0.01285]
[1768311823816,0.00959626,92269.0,92256.0,0.002]
[1768311824010,0.0054187,92273.0,92261.0,0.010849]
[1768311824318,0.0054187,92273.0,92258.0,0.010849]
[1768311824711,0.0054187,92273.0,92256.0,0.002]
[1768311824912,0.0054187,92273.0,92261.0,0.010849]
[1768311825505,0.00959626,92285.0,92263.0,0.010849]
[1768311825704,0.10951515,92285.0,92272.0,0.010848]
[1768311825905,1.5e-07,92285.0,92263.0,0.010849]
[1768311826217,0.00238367,92295.0,92277.0,0.00973524]
[1768311826218,5.3e-07,92293.0,92277.0,0.00973524]
[1768311826408,5.3e-07,92293.0,92279.0,0.00973524]
[1768311827423,5.3e-07,92293.0,92283.0,0.010846]
[1768311827716,5.3e-07,92293.0,92278.0,0.010847]
[1768311827910,5.3e-07,92293.0,92279.0,0.09764]
[1768311828112,5.3e-07,92293.0,92274.0,0.010848]
[1768311828324,5.3e-07,92293.0,92274.0,0.108488]
[1768311828507,5.3e-07,92293.0,92274.0,0.10737524]
[1768311828718,5.3e-07,92293.0,92278.0,0.010847]
[1768311829019,5.3e-07,92293.0,92278.0,0.00973524]
[1768311829415,0.00200053,92293.0,92288.0,0.010846]
[1768311829613,0.00200053,92293.0,92282.0,0.010847]
[1768311830016,5.3e-07,92293.0,92282.0,0.010847]
[1768311830214,0.00100053,92293.0,92279.0,0.010847]
[1768311831021,0.00100053,92293.0,92278.0,0.00973524]
[1768311831222,0.00100053,92293.0,92278.0,0.02058224]
[1768311831615,0.00100053,92293.0,92280.0,0.010847]
[1768311831821,5.3e-07,92293.0,92280.0,0.010847]
[1768311832023,5.3e-07,92293.0,92282.0,0.001]
[1768311832322,5.3e-07,92293.0,92282.0,0.011847]
[1768311832520,5.3e-07,92293.0,92287.0,1.49106419]
[1768311832825,0.00238367,92295.0,92287.0,1.49106419]
[1768311833131,0.010845,92299.0,92287.0,1.49106419]